fUSD/lending_fUSD_20240513
["ID","MTS","AMOUNT","RATE_DAILY","PERIOD"]
[326919078,1715582903160,-160.32903932,0.00011407,2]
[326919307,1715583010624,250.0,0.00011382,2]
[326919312,1715583032190,-3006.44548709,0.00011437,2]
[326919313,1715583032200,-4000.0,0.00011438,3]
[326919314,1715583032211,-619.32,0.00011449,2]
[326919315,1715583032222,-150.0,0.00011452,2]
[326919316,1715583032231,-250.0,0.00011469,2]
[326919317,1715583032240,-606.51,0.00011486,2]
[326919318,1715583032250,-380.68,0.00011486,2]
[326919319,1715583032260,-342.75,0.00011496,2]
[326919320,1715583032269,-499.99,0.00011508,2]
[326919321,1715583032279,-3878.2617,0.00011508,2]
[326919322,1715583032289,-390.5,0.00011549,2]
[326919323,1715583032298,-198.35,0.00011717,2]
[326919324,1715583032308,-399.56427023,0.0001186,2]
[326919325,1715583032318,-2401.66202429,0.00012,2]
[326919326,1715583032330,-1754.76,0.00012,2]
[326919327,1715583032343,-15462.51216359,0.00012,2]
[326919328,1715583032352,-5000.0,0.00012054,2]
[326919330,1715583032362,-1736.86,0.00012055,2]
[326919332,1715583032372,-2500.0,0.0001215,2]
[326919334,1715583032381,-530.52,0.00012192,2]
[326919336,1715583032391,-150.4,0.00012192,2]
[326919338,1715583032400,-150.0,0.00012192,2]
[326919340,1715583032410,-351.31,0.00012192,2]
[326919342,1715583032419,-288.1,0.00012192,2]
[326919344,1715583032429,-150.0,0.00012192,2]
[326919346,1715583032438,-150.0,0.00012192,2]
[326919348,1715583032448,-150.0,0.00012192,2]
[326919350,1715583032457,-150.0,0.00012192,2]
[326919351,1715583032467,-150.0,0.00012192,2]
[326919353,1715583032476,-150.0,0.00012192,2]
[326919355,1715583032486,-150.0,0.00012192,2]
[326919357,1715583032496,-276.26477197,0.00012248,2]
[326919359,1715583032505,-396.89271893,0.00012248,2]
[326919362,1715583032515,-1222.92116709,0.00012248,2]
[326919364,1715583032525,-293.06056207,0.00012248,2]
[326919366,1715583032535,-170.94453194,0.00012248,2]
[326919368,1715583032544,-195.07957425,0.00012248,2]
[326919370,1715583032554,-230.45208504,0.00012248,2]
[326919372,1715583032563,-155.09123205,0.00012249,2]
[326919374,1715583032573,-996.33987832,0.00012249,2]
[326919375,1715583032583,-96459.25131478,0.0001225,5]
[326919376,1715583032611,-397.82076205,0.0001225,5]
[326919389,1715583038110,-1206.27,0.00011408,2]
[326919390,1715583038119,-457.39909841,0.00012,2]
[326919391,1715583038135,-203.87753594,0.0001225,5]
[326919392,1715583038147,-124547.70462342,0.0001225,5]
[326919393,1715583038158,-292.82652537,0.0001225,5]
[326919394,1715583038280,-12406.63422821,0.0001225,5]
[326919395,1715583038291,-1421.105003,0.0001225,5]
[326919399,1715583040068,-18365.77872693,0.0001225,5]
[326919403,1715583040080,-4672.97022714,0.0001225,5]
[326919415,1715583040247,-158051.30718994,0.0001225,5]
[326919416,1715583040256,-334.83467758,0.000124,2]
[326919417,1715583040266,-334.83467752,0.0001248,2]
[326919418,1715583040276,-155.0,0.000125,2]
[326919419,1715583040285,-972.0,0.00012506,2]
[326919420,1715583040294,-3000.0,0.00012506,2]
[326919421,1715583040304,-289.322,0.00012506,2]
[326919422,1715583040313,-334.83467752,0.0001256,2]
[326919423,1715583040323,-334.83467752,0.0001264,2]
[326919424,1715583040334,-3707.902,0.00012648,2]
[326919425,1715583040343,-445.75001266,0.00012652,2]
[326919426,1715583040353,-3000.0,0.0001267,2]
[326919427,1715583040363,-500.0,0.00012697,2]
[326919428,1715583040372,-500.0,0.00012698,2]
[326919429,1715583040381,-334.83467752,0.0001272,2]
[326919430,1715583040391,-12646.59177514,0.0001275,2]
[326919431,1715583040400,-500.0,0.00012767,2]
[326919432,1715583040410,-10000.0,0.00012776,2]
[326919433,1715583040420,-172.49380918,0.00012776,2]
[326919434,1715583040429,-187.18007569,0.00012776,2]
[326919435,1715583040439,-1665.62791581,0.00012776,2]
[326919436,1715583040449,-286.58177473,0.0001278,2]
[326919437,1715583040459,-3005.76188548,0.0001278,2]
[326919438,1715583040468,-1665.62791577,0.00012785,2]
[326919439,1715583040478,-4584.53301792,0.00012786,2]
[326919440,1715583040488,-164.34589833,0.0001279,2]
[326919441,1715583040498,-427.98536419,0.00012792,2]
[326919442,1715583040507,-1665.62791577,0.00012795,2]
[326919443,1715583040517,-337.1187428,0.00012798,2]
[326919444,1715583040527,-158.39167548,0.00012798,2]
[326919445,1715583040536,-490.48999384,0.00012798,2]
[326919446,1715583040546,-411.05665986,0.00012798,2]
[326919447,1715583040556,-281.81283527,0.00012798,2]
[326919448,1715583040566,-3834.41334804,0.00012798,2]
[326919449,1715583040576,-1137.94257999,0.00012798,2]
[326919450,1715583040585,-204.6723515,0.00012798,2]
[326919451,1715583040596,-542.23618842,0.00012798,2]
[326919452,1715583040606,-783.62102359,0.00012798,2]
[326919453,1715583040615,-284.98562185,0.00012798,2]
[326919454,1715583040624,-236.47460547,0.00012798,2]
[326919455,1715583040634,-638.09565663,0.00012798,2]
[326919456,1715583040643,-155.0,0.00012798,2]
[326919457,1715583040652,-176.99291807,0.00012799,2]
[326919458,1715583040661,-723.78252745,0.00012799,2]
[326919459,1715583040671,-3275.60650835,0.00012799,2]
[326919460,1715583040681,-383239.98449508,0.000128,2]
[326919461,1715583040691,-3697.58255199,0.000128,2]
[326919462,1715583040701,-2000.0,0.000128,2]
[326919463,1715583040710,-200.0,0.000128,2]
[326919464,1715583040720,-2000.0,0.000128,2]
[326919465,1715583040730,-187.18007569,0.000128,2]
[326919466,1715583040739,-334.83467752,0.000128,2]
[326919467,1715583040750,-500.0,0.00012802,2]
[326919468,1715583040760,-500.0,0.00012802,2]
[326919469,1715583040769,-1665.62791577,0.00012804,2]
[326919470,1715583040779,-500.0,0.00012811,2]
[326919471,1715583040790,-500.0,0.00012811,2]
[326919472,1715583040799,-1665.62791577,0.00012814,2]
[326919473,1715583040809,-500.0,0.0001282,2]
[326919474,1715583040819,-500.0,0.0001282,2]
[326919475,1715583040829,-1665.62791577,0.00012823,2]
[326919476,1715583040840,-286.58177473,0.00012825,2]
[326919477,1715583040852,-3005.76188546,0.00012825,2]
[326919478,1715583040863,-500.0,0.00012828,2]
[326919479,1715583040872,-500.0,0.00012828,2]
[326919480,1715583040882,-1665.62791577,0.00012833,2]
[326919481,1715583040892,-500.0,0.00012837,2]
[326919482,1715583040903,-500.0,0.00012837,2]
[326919483,1715583040912,-1665.62791577,0.00012842,2]
[326919484,1715583040922,-500.0,0.00012846,2]
[326919485,1715583040932,-500.0,0.00012846,2]
[326919486,1715583040941,-1665.62791577,0.00012852,2]
[326919487,1715583040950,-500.0,0.00012855,2]
[326919488,1715583040960,-500.0,0.00012855,2]
[326919489,1715583040969,-1665.62791577,0.00012861,2]
[326919490,1715583040979,-500.0,0.00012864,2]
[326919491,1715583040988,-500.0,0.00012864,2]
[326919492,1715583040999,-388.092027,0.0001287,2]
[326919493,1715583041008,-11609.44042875,0.0001287,2]
[326919494,1715583041017,-388.76394081,0.0001287,2]
[326919495,1715583041027,-286.58177473,0.0001287,2]
[326919496,1715583041036,-164.34589833,0.0001287,2]
[326919497,1715583041046,-3005.76188546,0.0001287,2]
[326919498,1715583041056,-1665.62791577,0.00012871,2]
[326919499,1715583041065,-500.0,0.00012872,2]
[326919500,1715583041075,-500.0,0.00012872,2]
[326919501,1715583041084,-905.0,0.00012876,2]
[326919502,1715583041094,-233.8320123,0.00012876,2]
[326919503,1715583041105,-200.0,0.00012876,2]
[326919504,1715583041115,-157.11521569,0.00012876,2]
[326919505,1715583041125,-184.52595,0.00012876,2]
[326919506,1715583041137,-514.26,0.00012876,2]
[326919507,1715583041147,-500.0,0.00012876,2]
[326919508,1715583041157,-449.07,0.00012876,2]
[326919509,1715583041167,-500.0,0.00012876,2]
[326919510,1715583041177,-500.0,0.00012876,2]
[326919512,1715583041186,-500.0,0.00012876,2]
[326919515,1715583041196,-500.0,0.00012876,2]
[326919518,1715583041205,-364.65,0.00012876,2]
[326919520,1715583041217,-250.35208804,0.00012876,2]
[326919522,1715583041226,-500.0,0.00012876,2]
[326919523,1715583041235,-500.0,0.00012876,2]
[326919524,1715583041244,-312.28,0.00012876,2]
[326919525,1715583041253,-500.0,0.00012876,2]
[326919526,1715583041263,-500.0,0.00012876,2]
[326919527,1715583041273,-215.93,0.00012876,2]
[326919528,1715583041283,-601.38,0.00012876,2]
[326919529,1715583041293,-522.87,0.00012876,2]
[326919530,1715583041302,-500.0,0.00012876,2]
[326919531,1715583041313,-509.87,0.00012876,2]
[326919532,1715583041322,-500.0,0.00012876,2]
[326919533,1715583041332,-157.55563051,0.00012876,2]
[326919534,1715583041343,-500.0,0.00012876,2]
[326919535,1715583041353,-500.0,0.00012876,2]
[326919536,1715583041362,-500.0,0.00012876,2]
[326919537,1715583041371,-192.08,0.00012876,2]
[326919538,1715583041381,-500.0,0.00012876,2]
[326919539,1715583041390,-500.0,0.00012876,2]
[326919540,1715583041400,-500.0,0.00012876,2]
[326919541,1715583041409,-313.38044399,0.00012876,2]
[326919542,1715583041419,-500.0,0.00012876,2]
[326919544,1715583041428,-500.0,0.00012876,2]
[326919546,1715583041437,-320.12,0.00012876,2]
[326919548,1715583041446,-500.0,0.00012876,2]
[326919550,1715583041454,-624.37,0.00012876,2]
[326919552,1715583041464,-153.065168,0.00012876,2]
[326919554,1715583041474,-500.0,0.00012876,2]
[326919556,1715583041483,-500.0,0.00012876,2]
[326919558,1715583041493,-500.0,0.00012876,2]
[326919560,1715583041502,-500.0,0.00012876,2]
[326919562,1715583041512,-500.0,0.00012876,2]
[326919564,1715583041521,-1936.79,0.00012876,2]
[326919566,1715583041531,-1936.79,0.00012876,2]
[326919568,1715583041540,-1936.79,0.00012876,2]
[326919570,1715583041549,-1936.79,0.00012876,2]
[326919572,1715583041558,-1936.79,0.00012876,2]
[326919574,1715583041567,-1936.79,0.00012876,2]
[326919576,1715583041576,-500.0,0.00012876,2]
[326919578,1715583041585,-1936.79,0.00012876,2]
[326919579,1715583041595,-460.57,0.00012876,2]
[326919580,1715583041603,-1936.79,0.00012876,2]
[326919581,1715583041613,-517.95,0.00012876,2]
[326919582,1715583041622,-1936.79,0.00012876,2]
[326919583,1715583041632,-1936.79,0.00012876,2]
[326919584,1715583041642,-1936.79,0.00012876,2]
[326919585,1715583041651,-1936.79,0.00012876,2]
[326919586,1715583041661,-1936.79,0.00012876,2]
[326919587,1715583041670,-1936.79,0.00012876,2]
[326919588,1715583041679,-1936.79,0.00012876,2]
[326919589,1715583041689,-1936.79,0.00012876,2]
[326919590,1715583041698,-1936.79,0.00012876,2]
[326919591,1715583041707,-505.33228422,0.00012876,2]
[326919592,1715583041717,-500.0,0.00012876,2]
[326919593,1715583041726,-500.0,0.00012876,2]
[326919594,1715583041735,-511.99463486,0.00012876,2]
[326919595,1715583041744,-500.0,0.00012876,2]
[326919596,1715583041754,-538.61,0.00012876,2]
[326919597,1715583041763,-500.0,0.00012876,2]
[326919598,1715583041772,-359.66,0.00012876,2]
[326919599,1715583041781,-500.0,0.00012876,2]
[326919600,1715583041791,-450.47,0.00012876,2]
[326919601,1715583041801,-611.00976013,0.00012876,2]
[326919602,1715583041813,-500.0,0.00012876,2]
[326919603,1715583041823,-540.94252642,0.00012876,2]
[326919604,1715583041832,-500.0,0.00012876,2]
[326919605,1715583041841,-500.0,0.00012876,2]
[326919606,1715583041853,-185.23,0.00012876,2]
[326919607,1715583041862,-500.0,0.00012876,2]
[326919608,1715583041872,-500.0,0.00012876,2]
[326919609,1715583041882,-338.99,0.00012876,2]
[326919610,1715583041891,-500.0,0.00012876,2]
[326919611,1715583041902,-500.0,0.00012876,2]
[326919612,1715583041913,-151.0,0.00012876,2]
[326919613,1715583041922,-500.0,0.00012876,2]
[326919614,1715583041931,-151.0,0.00012876,2]
[326919615,1715583041941,-500.0,0.00012876,2]
[326919616,1715583041950,-500.0,0.00012876,2]
[326919617,1715583041959,-151.0,0.00012876,2]
[326919618,1715583041969,-500.0,0.00012876,2]
[326919619,1715583041980,-485.6,0.00012876,2]
[326919620,1715583041990,-500.0,0.00012876,2]
[326919621,1715583041999,-220.58,0.00012876,2]
[326919622,1715583042008,-500.0,0.00012876,2]
[326919623,1715583042017,-500.0,0.00012876,2]
[326919624,1715583042026,-500.0,0.00012876,2]
[326919625,1715583042035,-343.98,0.00012876,2]
[326919626,1715583042044,-500.0,0.00012876,2]
[326919627,1715583042053,-164.84,0.00012876,2]
[326919628,1715583042062,-500.0,0.00012876,2]
[326919629,1715583042072,-500.0,0.00012876,2]
[326919630,1715583042083,-151.0,0.00012876,2]
[326919631,1715583042094,-569.9,0.00012876,2]
[326919632,1715583042103,-151.0,0.00012876,2]
[326919633,1715583042112,-159.007682,0.00012876,2]
[326919634,1715583042121,-500.0,0.00012876,2]
[326919635,1715583042135,-207.29380396,0.00012876,2]
[326919636,1715583042144,-500.0,0.00012876,2]
[326919637,1715583042154,-364.74,0.00012876,2]
[326919638,1715583042165,-500.0,0.00012876,2]
[326919639,1715583042174,-314.83,0.00012876,2]
[326919640,1715583042184,-500.0,0.00012876,2]
[326919641,1715583042193,-500.0,0.00012876,2]
[326919642,1715583042203,-151.0,0.00012876,2]
[326919643,1715583042214,-151.0,0.00012876,2]
[326919644,1715583042224,-151.0,0.00012876,2]
[326919645,1715583042233,-500.0,0.00012876,2]
[326919646,1715583042242,-403.05,0.00012876,2]
[326919647,1715583042252,-500.0,0.00012876,2]
[326919648,1715583042260,-500.0,0.00012876,2]
[326919649,1715583042270,-236.19,0.00012876,2]
[326919650,1715583042279,-423.0506053,0.00012876,2]
[326919651,1715583042289,-500.0,0.00012876,2]
[326919652,1715583042298,-606.82,0.00012876,2]
[326919653,1715583042309,-500.0,0.00012876,2]
[326919654,1715583042318,-500.0,0.00012876,2]
[326919655,1715583042328,-500.0,0.00012876,2]
[326919656,1715583042337,-210.3,0.00012876,2]
[326919657,1715583042348,-500.0,0.00012876,2]
[326919658,1715583042358,-500.0,0.00012876,2]
[326919659,1715583042367,-500.0,0.00012876,2]
[326919660,1715583042377,-211.05,0.00012876,2]
[326919661,1715583042386,-236.25,0.00012876,2]
[326919662,1715583042395,-500.0,0.00012876,2]
[326919663,1715583042405,-195.49671478,0.00012876,2]
[326919664,1715583042414,-151.0,0.00012876,2]
[326919665,1715583042423,-151.0,0.00012876,2]
[326919666,1715583042432,-151.511151,0.00012876,2]
[326919667,1715583042441,-500.0,0.00012876,2]
[326919668,1715583042450,-161.57,0.00012876,2]
[326919669,1715583042460,-500.0,0.00012876,2]
[326919670,1715583042469,-500.0,0.00012876,2]
[326919671,1715583042479,-500.0,0.00012876,2]
[326919672,1715583042488,-501.33,0.00012876,2]
[326919673,1715583042497,-167.33369052,0.00012876,2]
[326919674,1715583042507,-505.76570082,0.00012876,2]
[326919675,1715583042516,-500.0,0.00012876,2]
[326919676,1715583042526,-500.0,0.00012876,2]
[326919677,1715583042535,-500.0,0.00012876,2]
[326919678,1715583042544,-249.52,0.00012876,2]
[326919679,1715583042553,-500.0,0.00012876,2]
[326919680,1715583042562,-500.0,0.00012876,2]
[326919681,1715583042571,-155.50720412,0.00012876,2]
[326919682,1715583042581,-507.47963382,0.00012876,2]
[326919683,1715583042590,-500.0,0.00012876,2]
[326919684,1715583042604,-500.0,0.00012876,2]
[326919685,1715583042614,-649.62,0.00012876,2]
[326919686,1715583042623,-151.0,0.00012876,2]
[326919687,1715583042633,-500.0,0.00012876,2]
[326919688,1715583042642,-151.0,0.00012876,2]
[326919689,1715583042651,-500.0,0.00012876,2]
[326919690,1715583042660,-530.65,0.00012876,2]
[326919691,1715583042669,-151.0,0.00012876,2]
[326919692,1715583042679,-151.0,0.00012876,2]
[326919693,1715583042688,-500.0,0.00012876,2]
[326919694,1715583042698,-506.57354562,0.00012876,2]
[326919695,1715583042707,-353.53,0.00012876,2]
[326919696,1715583042718,-506.50979963,0.00012876,2]
[326919697,1715583042727,-500.0,0.00012876,2]
[326919698,1715583042737,-500.0,0.00012876,2]
[326919699,1715583042748,-551.55323466,0.00012876,2]
[326919700,1715583042758,-507.77586008,0.00012876,2]
[326919702,1715583042769,-500.0,0.00012876,2]
[326919703,1715583042779,-500.0,0.00012876,2]
[326919705,1715583042789,-150.5601608,0.00012876,2]
[326919706,1715583042799,-500.0,0.00012876,2]
[326919707,1715583042809,-506.25618225,0.00012876,2]
[326919708,1715583042818,-500.0,0.00012876,2]
[326919709,1715583042827,-508.32577468,0.00012876,2]
[326919710,1715583042836,-500.0,0.00012876,2]
[326919712,1715583042849,-500.0,0.00012876,2]
[326919713,1715583042859,-500.0,0.00012876,2]
[326919714,1715583042869,-500.0,0.00012876,2]
[326919715,1715583042878,-500.0,0.00012876,2]
[326919717,1715583042888,-501.84999827,0.00012876,2]
[326919718,1715583042898,-500.0,0.00012876,2]
[326919720,1715583042908,-500.0,0.00012876,2]
[326919721,1715583042918,-500.0,0.00012876,2]
[326919722,1715583042927,-506.71245531,0.00012876,2]
[326919724,1715583042937,-511.88830193,0.00012876,2]
[326919725,1715583042946,-500.0,0.00012876,2]
[326919726,1715583042956,-457.75207582,0.00012876,2]
[326919727,1715583042965,-500.0,0.00012876,2]
[326919728,1715583042974,-500.0,0.00012876,2]
[326919729,1715583042983,-500.0,0.00012876,2]
[326919730,1715583042993,-500.0,0.00012876,2]
[326919731,1715583043003,-500.0,0.00012876,2]
[326919732,1715583043012,-500.0,0.00012876,2]
[326919733,1715583043021,-261.92363203,0.00012876,2]
[326919734,1715583043030,-508.59349773,0.00012876,2]
[326919735,1715583043039,-500.0,0.00012876,2]
[326919736,1715583043048,-640.65172275,0.00012876,2]
[326919737,1715583043057,-500.0,0.00012876,2]
[326919738,1715583043066,-503.05415495,0.00012876,2]
[326919739,1715583043076,-449.72822731,0.00012876,2]
[326919740,1715583043085,-506.91868931,0.00012876,2]
[326919741,1715583043095,-504.87690173,0.00012876,2]
[326919742,1715583043106,-208.79644306,0.00012876,2]
[326919743,1715583043115,-500.0,0.00012876,2]
[326919744,1715583043125,-323.53743659,0.00012876,2]
[326919745,1715583043139,-500.0,0.00012876,2]
[326919746,1715583043148,-444.31,0.00012876,2]
[326919747,1715583043158,-151.0,0.00012876,2]
[326919748,1715583043167,-151.0,0.00012876,2]
[326919749,1715583043178,-153.460628,0.00012876,2]
[326919751,1715583043187,-500.0,0.00012876,2]
[326919752,1715583043197,-500.0,0.00012876,2]
[326919753,1715583043208,-500.0,0.00012876,2]
[326919754,1715583043218,-500.0,0.00012876,2]
[326919755,1715583043229,-576.64900276,0.00012876,2]
[326919756,1715583043240,-506.97851152,0.00012876,2]
[326919757,1715583043250,-157.26309299,0.00012876,2]
[326919758,1715583043259,-500.0,0.00012876,2]
[326919759,1715583043270,-401.4455013,0.00012876,2]
[326919760,1715583043279,-500.0,0.00012876,2]
[326919761,1715583043288,-281.44602043,0.00012876,2]
[326919762,1715583043298,-500.0,0.00012876,2]
[326919763,1715583043307,-500.0,0.00012876,2]
[326919764,1715583043316,-500.0,0.00012876,2]
[326919765,1715583043325,-500.0,0.00012876,2]
[326919766,1715583043334,-420.2,0.00012876,2]
[326919767,1715583043345,-500.0,0.00012876,2]
[326919768,1715583043354,-500.0,0.00012876,2]
[326919769,1715583043363,-500.0,0.00012876,2]
[326919770,1715583043372,-300.90406021,0.00012876,2]
[326919771,1715583043382,-151.0,0.00012876,2]
[326919772,1715583043391,-153.879191,0.00012876,2]
[326919773,1715583043400,-500.0,0.00012876,2]
[326919774,1715583043410,-505.42518666,0.00012876,2]
[326919775,1715583043419,-191.77075696,0.00012876,2]
[326919776,1715583043428,-638.61542223,0.00012876,2]
[326919777,1715583043439,-500.0,0.00012876,2]
[326919778,1715583043448,-506.87253813,0.00012876,2]
[326919779,1715583043458,-507.78084066,0.00012876,2]
[326919780,1715583043468,-500.0,0.00012876,2]
[326919781,1715583043477,-500.0,0.00012876,2]
[326919782,1715583043487,-500.0,0.00012876,2]
[326919783,1715583043497,-500.0,0.00012876,2]
[326919784,1715583043506,-151.0,0.00012876,2]
[326919785,1715583043515,-546.70772517,0.00012876,2]
[326919786,1715583043525,-151.0,0.00012876,2]
[326919787,1715583043534,-500.0,0.00012876,2]
[326919788,1715583043543,-153.758466,0.00012876,2]
[326919789,1715583043552,-504.07398359,0.00012876,2]
[326919791,1715583043744,-507.57905263,0.00012876,2]
[326919792,1715583043756,-500.0,0.00012876,2]
[326919793,1715583043765,-500.0,0.00012876,2]
[326919794,1715583043775,-500.0,0.00012876,2]
[326919795,1715583043785,-262.52313963,0.00012876,2]
[326919796,1715583043794,-151.0,0.00012876,2]
[326919797,1715583043804,-500.0,0.00012876,2]
[326919798,1715583043814,-151.0,0.00012876,2]
[326919799,1715583043823,-500.0,0.00012876,2]
[326919800,1715583043833,-593.9,0.00012876,2]
[326919801,1715583043844,-151.0,0.00012876,2]
[326919802,1715583043853,-500.0,0.00012876,2]
[326919804,1715583043863,-479.89702033,0.00012876,2]
[326919805,1715583043872,-508.32560587,0.00012876,2]
[326919806,1715583043882,-500.0,0.00012876,2]
[326919807,1715583043892,-500.0,0.00012876,2]
[326919808,1715583043902,-500.0,0.00012876,2]
[326919809,1715583043911,-216.4365765,0.00012876,2]
[326919810,1715583043920,-506.65869196,0.00012876,2]
[326919811,1715583043929,-500.0,0.00012876,2]
[326919812,1715583043938,-500.0,0.00012876,2]
[326919813,1715583043947,-500.0,0.00012876,2]
[326919814,1715583043956,-500.0,0.00012876,2]
[326919815,1715583043966,-500.0,0.00012876,2]
[326919816,1715583043974,-298.37,0.00012876,2]
[326919817,1715583043984,-508.58591472,0.00012876,2]
[326919818,1715583043993,-500.0,0.00012876,2]
[326919819,1715583044002,-543.33284214,0.00012876,2]
[326919820,1715583044011,-504.30249505,0.00012876,2]
[326919821,1715583044022,-500.0,0.00012876,2]
[326919822,1715583044031,-508.94187028,0.00012876,2]
[326919823,1715583044041,-501.39188414,0.00012876,2]
[326919824,1715583044050,-500.0,0.00012876,2]
[326919825,1715583044060,-500.0,0.00012876,2]
[326919826,1715583044069,-500.0,0.00012876,2]
[326919827,1715583044078,-500.0,0.00012876,2]
[326919828,1715583044087,-500.0,0.00012876,2]
[326919829,1715583044098,-507.27079758,0.00012876,2]
[326919830,1715583044107,-500.0,0.00012876,2]
[326919831,1715583044116,-500.0,0.00012876,2]
[326919832,1715583044126,-506.86611203,0.00012876,2]
[326919833,1715583044140,-333.19825756,0.00012876,2]
[326919834,1715583044150,-500.0,0.00012876,2]
[326919835,1715583044159,-500.0,0.00012876,2]
[326919836,1715583044170,-500.0,0.00012876,2]
[326919837,1715583044179,-504.03170846,0.00012876,2]
[326919838,1715583044188,-500.0,0.00012876,2]
[326919839,1715583044198,-500.0,0.00012876,2]
[326919840,1715583044208,-500.0,0.00012876,2]
[326919841,1715583044218,-500.0,0.00012876,2]
[326919842,1715583044228,-500.0,0.00012876,2]
[326919843,1715583044238,-500.0,0.00012876,2]
[326919844,1715583044248,-500.0,0.00012876,2]
[326919845,1715583044257,-167.8,0.00012876,2]
[326919846,1715583044267,-465.08852108,0.00012876,2]
[326919847,1715583044276,-506.75816844,0.00012876,2]
[326919848,1715583044285,-500.0,0.00012876,2]
[326919849,1715583044295,-500.0,0.00012876,2]
[326919850,1715583044305,-500.0,0.00012876,2]
[326919851,1715583044314,-500.0,0.00012876,2]
[326919852,1715583044323,-322.30973979,0.00012876,2]
[326919853,1715583044332,-500.0,0.00012876,2]
[326919854,1715583044342,-500.0,0.00012876,2]
[326919855,1715583044352,-500.0,0.00012876,2]
[326919856,1715583044362,-416.65,0.00012876,2]
[326919857,1715583044371,-500.0,0.00012876,2]
[326919858,1715583044380,-500.0,0.00012876,2]
[326919859,1715583044390,-500.0,0.00012876,2]
[326919860,1715583044398,-500.0,0.00012876,2]
[326919861,1715583044408,-500.0,0.00012876,2]
[326919862,1715583044417,-547.45058615,0.00012876,2]
[326919863,1715583044427,-500.0,0.00012876,2]
[326919864,1715583044436,-500.0,0.00012876,2]
[326919865,1715583044446,-218.24398916,0.00012876,2]
[326919866,1715583044455,-262.9101174,0.00012876,2]
[326919867,1715583044465,-500.0,0.00012876,2]
[326919868,1715583044474,-500.0,0.00012876,2]
[326919869,1715583044484,-500.0,0.00012876,2]
[326919870,1715583044494,-500.0,0.00012876,2]
[326919871,1715583044503,-500.0,0.00012876,2]
[326919872,1715583044512,-500.0,0.00012876,2]
[326919873,1715583044522,-504.48662305,0.00012876,2]
[326919874,1715583044532,-500.0,0.00012876,2]
[326919875,1715583044541,-151.29856947,0.00012876,2]
[326919876,1715583044551,-500.0,0.00012876,2]
[326919877,1715583044561,-560.67440127,0.00012876,2]
[326919878,1715583044571,-500.0,0.00012876,2]
[326919879,1715583044581,-500.0,0.00012876,2]
[326919880,1715583044591,-304.42935141,0.00012876,2]
[326919881,1715583044602,-500.0,0.00012876,2]
[326919882,1715583044611,-430.90755673,0.00012876,2]
[326919883,1715583044620,-500.0,0.00012876,2]
[326919884,1715583044629,-151.0,0.00012876,2]
[326919885,1715583044638,-191.07,0.00012876,2]
[326919886,1715583044648,-500.0,0.00012876,2]
[326919887,1715583044657,-151.0,0.00012876,2]
[326919888,1715583044666,-500.0,0.00012876,2]
[326919889,1715583044676,-153.12016,0.00012876,2]
[326919890,1715583044685,-500.0,0.00012876,2]
[326919891,1715583044694,-216.40310161,0.00012876,2]
[326919892,1715583044704,-500.0,0.00012876,2]
[326919893,1715583044713,-500.0,0.00012876,2]
[326919894,1715583044723,-500.0,0.00012876,2]
[326919895,1715583044732,-259.19406094,0.00012876,2]